fUST/lending_fUST_20241231
["ID","MTS","AMOUNT","RATE_DAILY","PERIOD"]
[347256499,1735641055872,-500.0,0.00020821,3]
[347256500,1735641055881,-29851.26,0.00020821,3]
[347256501,1735641055891,-1072.34,0.00020821,3]
[347256502,1735641055900,-500.0,0.00020821,3]
[347256503,1735641055910,-500.0,0.00020821,3]
[347256504,1735641055919,-617.6,0.00020821,3]
[347256505,1735641055928,-561.65,0.00020821,3]
[347256506,1735641055937,-500.0,0.00020821,3]
[347256507,1735641055946,-500.0,0.00020821,3]
[347256508,1735641055955,-965.02,0.00020821,3]
[347256509,1735641055964,-500.0,0.00020821,3]
[347256510,1735641055973,-3937.91,0.00020821,3]
[347256511,1735641055982,-500.0,0.00020821,3]
[347256512,1735641055992,-550.12,0.00020821,3]
[347256513,1735641056002,-638.95,0.00020821,3]
[347256514,1735641056012,-590.87,0.00020821,3]
[347256515,1735641056022,-500.0,0.00020821,3]
[347256516,1735641056032,-842.09,0.00020821,3]
[347256517,1735641056041,-531.14,0.00020821,3]
[347256518,1735641056052,-500.0,0.00020821,3]
[347256519,1735641056062,-500.0,0.00020821,3]
[347256520,1735641056072,-500.0,0.00020821,3]
[347256521,1735641056082,-500.0,0.00020821,3]
[347256522,1735641056091,-6278.26,0.00020821,3]
[347256523,1735641056100,-512.72,0.00020821,3]
[347256524,1735641056109,-493.85,0.00020821,3]
[347256525,1735641056117,-500.0,0.00020821,3]
[347256526,1735641056126,-500.0,0.00020821,3]
[347256527,1735641056135,-500.0,0.00020821,3]
[347256528,1735641056144,-3262.99,0.00020821,3]
[347256529,1735641056153,-4288.12,0.00020821,3]
[347256530,1735641056164,-2130.49,0.00020821,3]
[347256531,1735641056173,-661.64,0.00020821,3]
[347256532,1735641056183,-1444.32,0.00020821,3]
[347256533,1735641056191,-1080.15,0.00020821,3]
[347256534,1735641056201,-500.0,0.00020821,3]
[347256535,1735641056210,-500.0,0.00020821,2]
[347256536,1735641056219,-1212.67,0.00020821,3]
[347256537,1735641056227,-13568.78,0.000209,2]
[347256538,1735641056237,-338.636171,0.00020904,2]
[347256539,1735641056245,-3857.81886782,0.00020995,2]
[347256540,1735641056254,-30000.0,0.00021,3]
[347256541,1735641056263,-3000.0,0.00021,2]
[347256542,1735641056272,-150.0,0.00021,2]
[347256543,1735641056281,-550.06,0.00021,2]
[347256544,1735641056290,-300.0,0.00021,9]
[347256545,1735641056299,-278.107537,0.00021,2]
[347256546,1735641056308,-10258.27506753,0.00021,2]
[347256547,1735641056317,-3000.0,0.0002101,2]
[347256548,1735641056326,-1200.0,0.00021012,2]
[347256549,1735641056335,-3857.81886778,0.00021017,2]
[347256550,1735641056345,-3000.0,0.0002102,2]
[347256551,1735641056357,-3000.0,0.0002103,2]
[347256552,1735641056366,-3857.81886778,0.00021039,2]
[347256553,1735641056375,-3000.0,0.0002104,2]
[347256554,1735641056384,-3000.0,0.0002105,2]
[347256555,1735641056394,-3000.0,0.0002106,2]
[347256556,1735641056403,-3857.81886778,0.00021062,2]
[347256557,1735641056413,-249.94,0.00021064,2]
[347256558,1735641056422,-3000.0,0.0002107,2]
[347256559,1735641056432,-3868.559356,0.0002108,2]
[347256560,1735641056441,-3857.81886778,0.00021084,2]
[347256561,1735641056450,-198.9,0.00021095,3]
[347256562,1735641056462,-500.0,0.00021095,3]
[347256563,1735641056471,-500.0,0.00021095,3]
[347256564,1735641056480,-1861.03,0.00021095,3]
[347256565,1735641056490,-500.0,0.00021095,3]
[347256566,1735641056499,-500.0,0.00021095,3]
[347256567,1735641056508,-500.0,0.00021095,2]
[347256568,1735641056518,-165.79197373,0.00021095,3]
[347256569,1735641056527,-500.0,0.00021095,3]
[347256570,1735641056536,-500.0,0.00021095,3]
[347256571,1735641056545,-7532.69,0.00021095,3]
[347256572,1735641056553,-303.46014395,0.00021095,3]
[347256573,1735641056563,-558.44,0.00021095,3]
[347256574,1735641056572,-500.0,0.00021095,3]
[347256575,1735641056581,-609.41906146,0.00021095,3]
[347256576,1735641056590,-500.0,0.00021095,3]
[347256577,1735641056600,-859.02,0.00021095,3]
[347256578,1735641056610,-500.0,0.00021095,3]
[347256579,1735641056619,-767.32,0.00021095,3]
[347256580,1735641056628,-500.0,0.00021095,3]
[347256581,1735641056637,-771.55,0.00021095,3]
[347256582,1735641056646,-500.0,0.00021095,3]
[347256583,1735641056655,-721.11,0.00021095,3]
[347256584,1735641056665,-512.91,0.00021095,3]
[347256585,1735641056674,-807.01,0.00021095,3]
[347256586,1735641056683,-500.0,0.00021095,3]
[347256587,1735641056692,-500.0,0.00021095,3]
[347256588,1735641056701,-2707.79,0.00021095,3]
[347256589,1735641056710,-500.0,0.00021095,3]
[347256590,1735641056719,-503.0050414,0.00021095,3]
[347256591,1735641056728,-500.0,0.00021095,3]
[347256592,1735641056737,-500.0,0.00021095,3]
[347256593,1735641056746,-1038.44,0.00021095,3]
[347256594,1735641056755,-500.0,0.00021095,3]
[347256595,1735641056765,-1432.65,0.00021095,3]
[347256596,1735641056774,-500.0,0.00021095,3]
[347256597,1735641056783,-500.0,0.00021095,3]
[347256598,1735641056794,-1216.76,0.00021095,3]
[347256599,1735641056803,-500.0,0.00021095,3]
[347256600,1735641056813,-29851.26,0.00021095,3]
[347256601,1735641056822,-1072.34,0.00021095,3]
[347256602,1735641056831,-500.0,0.00021095,3]
[347256603,1735641056841,-500.0,0.00021095,3]
[347256604,1735641056850,-617.6,0.00021095,3]
[347256605,1735641056860,-561.65,0.00021095,3]
[347256606,1735641056871,-500.0,0.00021095,3]
[347256607,1735641056880,-500.0,0.00021095,3]
[347256608,1735641056889,-965.02,0.00021095,3]
[347256609,1735641056898,-592.35253263,0.00021095,3]
[347256610,1735641056908,-3937.91,0.00021095,3]
[347256611,1735641056917,-218.844367,0.00021095,3]
[347256612,1735641056927,-550.12,0.00021095,3]
[347256613,1735641056936,-638.95,0.00021095,3]
[347256614,1735641056945,-590.87,0.00021095,3]
[347256615,1735641056954,-500.0,0.00021095,3]
[347256616,1735641056963,-842.09,0.00021095,3]
[347256617,1735641056972,-531.14,0.00021095,3]
[347256618,1735641056982,-500.0,0.00021095,3]
[347256619,1735641056991,-500.0,0.00021095,3]
[347256620,1735641057000,-500.0,0.00021095,3]
[347256621,1735641057009,-500.0,0.00021095,3]
[347256622,1735641057019,-6278.26,0.00021095,3]
[347256623,1735641057030,-512.72,0.00021095,3]
[347256624,1735641057042,-500.0,0.00021095,3]
[347256625,1735641057052,-500.0,0.00021095,3]
[347256626,1735641057062,-500.0,0.00021095,3]
[347256627,1735641057071,-3262.99,0.00021095,3]
[347256628,1735641057150,-4288.12,0.00021095,3]
[347256629,1735641057161,-2130.49,0.00021095,3]
[347256630,1735641057170,-661.64,0.00021095,3]
[347256631,1735641057181,-1444.32,0.00021095,3]
[347256632,1735641057190,-1080.15,0.00021095,3]
[347256633,1735641057199,-500.0,0.00021095,3]
[347256634,1735641057208,-1212.67,0.00021095,3]
[347256635,1735641057217,-500.0,0.00021095,2]
[347256636,1735641057226,-151.0,0.00021095,7]
[347256637,1735641057236,-338.636171,0.00021096,2]
[347256638,1735641057244,-4515.65,0.000211,2]
[347256639,1735641057254,-5164.75756255,0.000211,3]
[347256640,1735641057263,-5164.75756255,0.000211,3]
[347256641,1735641057272,-5164.75756255,0.000211,3]
[347256642,1735641057281,-1934.3365,0.000211,2]
[347256643,1735641057290,-3857.81886778,0.00021106,2]
[347256644,1735641057299,-3857.81886778,0.00021128,2]
[347256645,1735641057308,-1680.0,0.00021136,10]
[347256646,1735641057317,-3857.81886778,0.00021151,2]
[347256647,1735641057326,-3857.81886778,0.00021173,2]
[347256648,1735641057335,-166.0,0.00021188,2]
[347256649,1735641057344,-166.0,0.00021188,2]
[347256650,1735641057353,-168.86,0.00021188,2]
[347256651,1735641057362,-158.0,0.00021188,2]
[347256652,1735641057371,-158.0,0.00021188,2]
[347256653,1735641057380,-158.0,0.00021188,2]
[347256654,1735641057390,-158.0,0.00021188,2]
[347256655,1735641057399,-158.0,0.00021188,2]
[347256656,1735641057408,-158.0,0.00021188,2]
[347256657,1735641057418,-159.34,0.00021188,2]
[347256658,1735641057427,-3857.81886778,0.00021195,2]
[347256659,1735641057436,-344.41883795,0.00021203,2]
[347256660,1735641057445,-183.76836815,0.00021248,2]
[347256661,1735641057454,-338.636171,0.00021288,2]
[347256662,1735641057463,-152.471907,0.00021291,2]
[347256663,1735641057472,-152.471907,0.00021291,2]
[347256664,1735641057482,-152.471907,0.00021291,2]
[347256665,1735641057491,-152.471907,0.00021291,2]
[347256666,1735641057500,-152.471907,0.00021291,2]
[347256667,1735641057509,-152.471907,0.00021291,2]
[347256668,1735641057519,-152.471907,0.00021291,2]
[347256669,1735641057527,-152.471907,0.00021291,2]
[347256670,1735641057537,-152.471907,0.00021291,2]
[347256671,1735641057546,-152.471907,0.00021291,2]
[347256672,1735641057556,-152.471907,0.00021291,2]
[347256673,1735641057565,-152.471907,0.00021291,2]
[347256674,1735641057574,-152.471907,0.00021291,2]
[347256675,1735641057583,-152.471907,0.00021291,2]
[347256676,1735641057593,-152.471907,0.00021291,2]
[347256677,1735641057602,-152.471907,0.00021291,2]
[347256678,1735641057611,-152.471907,0.00021291,2]
[347256679,1735641057620,-152.471907,0.00021291,2]
[347256680,1735641057629,-152.471907,0.00021291,2]
[347256681,1735641057638,-152.471915,0.00021291,2]
[347256682,1735641057647,-867.227941,0.00021291,2]
[347256683,1735641057656,-867.227941,0.00021291,2]
[347256684,1735641057666,-867.227941,0.00021291,2]
[347256685,1735641057675,-867.227941,0.00021291,2]
[347256686,1735641057684,-867.227941,0.00021291,2]
[347256687,1735641057693,-867.227941,0.00021291,2]
[347256688,1735641057702,-867.227941,0.00021291,2]
[347256689,1735641057711,-867.227941,0.00021291,2]
[347256690,1735641057720,-867.227941,0.00021291,2]
[347256691,1735641057729,-867.227941,0.00021291,2]
[347256692,1735641057738,-867.227941,0.00021291,2]
[347256693,1735641057747,-867.227941,0.00021291,2]
[347256694,1735641057756,-867.227941,0.00021291,2]
[347256695,1735641057765,-867.227941,0.00021291,2]
[347256696,1735641057774,-867.227941,0.00021291,2]
[347256697,1735641057784,-867.227941,0.00021291,2]
[347256698,1735641057796,-867.227941,0.00021291,2]
[347256699,1735641057805,-867.227941,0.00021291,2]
[347256700,1735641057814,-867.227941,0.00021291,2]
[347256701,1735641057823,-867.227934,0.00021291,2]
[347256702,1735641057832,-151.0,0.00021295,2]
[347256703,1735641057842,-151.0,0.00021295,2]
[347256704,1735641057851,-151.0,0.00021295,2]
[347256705,1735641057861,-151.0,0.00021295,2]
[347256706,1735641057872,-151.0,0.00021295,2]
[347256707,1735641057881,-151.0,0.00021295,2]
[347256708,1735641057890,-151.0,0.00021295,2]
[347256709,1735641057899,-151.0,0.00021295,2]
[347256710,1735641057908,-151.0,0.00021295,2]
[347256711,1735641057917,-151.0,0.00021295,2]
[347256712,1735641057926,-151.0,0.00021295,2]
[347256713,1735641057935,-204.047903,0.00021295,2]
[347256714,1735641057944,-151.0,0.00021295,2]
[347256715,1735641057953,-151.0,0.00021295,2]
[347256716,1735641057963,-151.0,0.00021295,2]
[347256717,1735641057972,-151.0,0.00021295,2]
[347256718,1735641057981,-151.0,0.00021295,2]
[347256719,1735641057990,-296.382157,0.00021295,2]
[347256720,1735641057999,-194.435525,0.00021295,2]
[347256721,1735641058008,-194.435525,0.00021295,2]
[347256722,1735641058018,-194.435525,0.00021295,2]
[347256723,1735641058027,-194.435525,0.00021295,2]
[347256724,1735641058036,-194.435525,0.00021295,2]
[347256725,1735641058045,-194.435525,0.00021295,2]
[347256726,1735641058055,-194.435525,0.00021295,2]
[347256727,1735641058064,-194.435525,0.00021295,2]
[347256728,1735641058074,-194.435525,0.00021295,2]
[347256729,1735641058084,-194.435525,0.00021295,2]
[347256730,1735641058093,-194.435525,0.00021295,2]
[347256731,1735641058102,-194.435525,0.00021295,2]
[347256732,1735641058110,-194.435525,0.00021295,2]
[347256733,1735641058120,-194.435525,0.00021295,2]
[347256734,1735641058129,-194.435525,0.00021295,2]
[347256735,1735641058138,-194.435525,0.00021295,2]
[347256736,1735641058147,-194.435525,0.00021295,2]
[347256737,1735641058157,-194.435525,0.00021295,2]
[347256738,1735641058166,-194.435525,0.00021295,2]
[347256739,1735641058175,-194.435532,0.00021295,2]
[347256740,1735641058185,-627.72666879,0.00021369,3]
[347256741,1735641058194,-500.0,0.00021369,3]
[347256742,1735641058203,-1861.03,0.00021369,3]
[347256743,1735641058212,-500.0,0.00021369,3]
[347256744,1735641058221,-500.0,0.00021369,3]
[347256745,1735641058230,-486.8,0.00021369,2]
[347256746,1735641058240,-500.0,0.00021369,3]
[347256747,1735641058249,-500.0,0.00021369,3]
[347256748,1735641058259,-7532.69,0.00021369,3]
[347256749,1735641058269,-558.44,0.00021369,3]
[347256750,1735641058279,-500.0,0.00021369,3]
[347256751,1735641058287,-500.0,0.00021369,3]
[347256752,1735641058297,-859.02,0.00021369,3]
[347256753,1735641058307,-500.0,0.00021369,3]
[347256754,1735641058316,-767.32,0.00021369,3]
[347256755,1735641058325,-500.0,0.00021369,3]
[347256756,1735641058334,-771.55,0.00021369,3]
[347256757,1735641058344,-500.0,0.00021369,3]
[347256758,1735641058354,-721.11,0.00021369,3]
[347256759,1735641058363,-512.91,0.00021369,3]
[347256760,1735641058373,-807.01,0.00021369,3]
[347256761,1735641058382,-500.0,0.00021369,3]
[347256762,1735641058391,-500.0,0.00021369,3]
[347256763,1735641058401,-2707.79,0.00021369,3]
[347256764,1735641058413,-500.0,0.00021369,3]
[347256765,1735641058423,-561.83283761,0.00021369,3]
[347256766,1735641058433,-500.0,0.00021369,3]
[347256767,1735641058443,-1038.44,0.00021369,3]
[347256768,1735641058453,-500.0,0.00021369,3]
[347256769,1735641058463,-1432.65,0.00021369,3]
[347256770,1735641058473,-500.0,0.00021369,3]
[347256771,1735641058483,-500.0,0.00021369,3]
[347256772,1735641058492,-1216.76,0.00021369,3]
[347256773,1735641058502,-29851.26,0.00021369,3]
[347256774,1735641058512,-1072.34,0.00021369,3]
[347256775,1735641058521,-500.0,0.00021369,3]
[347256776,1735641058531,-199.90688615,0.00021369,3]
[347256777,1735641058540,-617.6,0.00021369,3]
[347256778,1735641058550,-561.65,0.00021369,3]
[347256779,1735641058560,-500.0,0.00021369,3]
[347256780,1735641058570,-500.0,0.00021369,3]
[347256781,1735641058580,-965.02,0.00021369,3]
[347256782,1735641058589,-3937.91,0.00021369,3]
[347256783,1735641058598,-550.12,0.00021369,3]
[347256784,1735641058608,-638.95,0.00021369,3]
[347256785,1735641058618,-590.87,0.00021369,3]
[347256786,1735641058627,-500.0,0.00021369,3]
[347256787,1735641058636,-842.09,0.00021369,3]
[347256788,1735641058645,-531.14,0.00021369,3]
[347256789,1735641058655,-500.0,0.00021369,3]
[347256790,1735641058667,-500.0,0.00021369,3]
[347256791,1735641058676,-156.15478107,0.00021369,3]
[347256792,1735641058686,-6278.26,0.00021369,3]
[347256793,1735641058695,-512.72,0.00021369,3]
[347256794,1735641058705,-500.0,0.00021369,3]
[347256795,1735641058714,-500.0,0.00021369,3]
[347256796,1735641058783,-500.0,0.00021369,3]
[347256797,1735641058802,-3262.99,0.00021369,3]
[347256798,1735641058812,-4288.12,0.00021369,3]
[347256799,1735641058822,-2130.49,0.00021369,3]
[347256800,1735641058831,-661.64,0.00021369,3]
[347256801,1735641058840,-1444.32,0.00021369,3]
[347256802,1735641058849,-1080.15,0.00021369,3]
[347256803,1735641058859,-500.0,0.00021369,3]
[347256804,1735641058869,-1212.67,0.00021369,3]
[347256805,1735641058879,-500.0,0.00021369,2]
[347256806,1735641058888,-338.636171,0.00021479,2]
[347256807,1735641058898,-100000.0,0.000215,5]
[347256808,1735641058907,-45553.71402993,0.000215,15]
[347256809,1735641058918,-1500.0,0.00021522,2]
[347256810,1735641058927,-500.0,0.00021544,2]
[347256811,1735641058936,-287.47962494,0.00021544,2]
[347256812,1735641058946,-500.0,0.00021544,2]
[347256813,1735641058955,-500.0,0.00021544,2]
[347256814,1735641058965,-500.0,0.00021544,2]
[347256815,1735641058974,-500.0,0.00021643,3]
[347256816,1735641058985,-1861.03,0.00021643,3]
[347256817,1735641058994,-500.0,0.00021643,3]
[347256818,1735641059004,-500.0,0.00021643,3]
[347256819,1735641059013,-500.0,0.00021643,3]
[347256820,1735641059023,-500.0,0.00021643,3]
[347256821,1735641059033,-7532.69,0.00021643,3]
[347256822,1735641059042,-558.44,0.00021643,3]
[347256823,1735641059052,-500.0,0.00021643,3]
[347256824,1735641059061,-500.0,0.00021643,3]
[347256825,1735641059071,-859.02,0.00021643,3]
[347256826,1735641059080,-628.28981737,0.00021643,3]
[347256827,1735641059089,-767.32,0.00021643,3]
[347256828,1735641059098,-771.55,0.00021643,3]
[347256829,1735641059108,-721.11,0.00021643,3]
[347256830,1735641059118,-512.91,0.00021643,3]
[347256831,1735641059128,-807.01,0.00021643,3]
[347256832,1735641059137,-500.0,0.00021643,3]
[347256833,1735641059146,-500.0,0.00021643,3]
[347256834,1735641059155,-2707.79,0.00021643,3]
[347256835,1735641059166,-500.0,0.00021643,3]
[347256836,1735641059176,-312.1280784,0.00021643,3]
[347256837,1735641059186,-1038.44,0.00021643,3]
[347256838,1735641059195,-500.0,0.00021643,3]
[347256839,1735641059204,-1432.65,0.00021643,3]
[347256840,1735641059214,-500.0,0.00021643,3]
[347256841,1735641059223,-500.0,0.00021643,3]
[347256842,1735641059233,-1216.76,0.00021643,3]
[347256843,1735641059243,-29851.26,0.00021643,3]
[347256844,1735641059253,-1072.34,0.00021643,3]
[347256845,1735641059263,-537.73,0.00021643,3]
[347256846,1735641059272,-617.6,0.00021643,3]
[347256847,1735641059282,-561.65,0.00021643,3]
[347256848,1735641059291,-500.0,0.00021643,3]
[347256849,1735641059301,-500.0,0.00021643,3]
[347256850,1735641059310,-965.02,0.00021643,3]
[347256851,1735641059320,-3937.91,0.00021643,3]
[347256852,1735641059330,-550.12,0.00021643,3]
[347256853,1735641059340,-638.95,0.00021643,3]
[347256854,1735641059349,-590.87,0.00021643,3]
[347256855,1735641059359,-500.0,0.00021643,3]
[347256856,1735641059369,-842.09,0.00021643,3]
[347256857,1735641059378,-531.14,0.00021643,3]
[347256858,1735641059387,-189.86012679,0.00021643,3]
[347256859,1735641059397,-500.0,0.00021643,3]
[347256860,1735641059407,-6278.26,0.00021643,3]
[347256861,1735641059417,-512.72,0.00021643,3]
[347256862,1735641059427,-499.0,0.00021643,4]
[347256863,1735641059436,-500.0,0.00021643,3]
[347256864,1735641059446,-500.0,0.00021643,3]
[347256865,1735641059455,-500.0,0.00021643,3]
[347256866,1735641059464,-3262.99,0.00021643,3]
[347256867,1735641059474,-4288.12,0.00021643,3]
[347256868,1735641059483,-2130.49,0.00021643,3]
[347256869,1735641059492,-661.64,0.00021643,3]
[347256870,1735641059501,-1444.32,0.00021643,3]
[347256871,1735641059511,-1080.15,0.00021643,3]
[347256872,1735641059520,-184.36134055,0.00021643,3]
[347256873,1735641059529,-1212.67,0.00021643,3]
[347256874,1735641059538,-500.0,0.00021643,2]
[347256875,1735641059548,-338.636171,0.00021671,2]
[347256876,1735641059557,-4832.95881411,0.00021741,2]
[347256877,1735641059567,-39887.17247752,0.00021741,2]
[347256878,1735641059576,-842659.54604355,0.00021742,10]
[347256879,1735641059666,-5130.39672047,0.00021742,10]
[347256889,1735641212085,160.0,0.00020733,120]
[347256890,1735641266026,500.0,0.00021976,120]
[347256891,1735641371135,400.0,0.00025,120]
[347256905,1735641730586,232.193101,0.0002411,120]
[347256907,1735641935107,-229.85908604,0.0001264,2]
[347256908,1735641935130,-229.85908604,0.00012768,2]
[347256909,1735641935152,-150.44,0.00013699,2]
[347256910,1735641935173,-150.44711558,0.00013699,2]
[347256911,1735641935195,-164.75117542,0.00016417,2]
[347256913,1735642151097,-212.513815,0.00013695,2]
[347256914,1735642151118,-212.513815,0.00013833,2]
[347256915,1735642151139,-212.513815,0.00013973,2]
[347256916,1735642151159,-8952.90414001,0.00016125,2]
[347256917,1735642155220,-102993.79434485,0.00016125,2]
[347256918,1735642160094,-3093.040585,0.00015964,2]
[347256919,1735642160116,-62146.35616905,0.00016125,2]
[347256920,1735642164099,-6021.25234692,0.00016125,2]
[347256921,1735642168087,-1028.05422945,0.00015964,2]
[347256922,1735642168107,-95350.7086388,0.00016125,2]
[347257089,1735642240615,-813.07228763,0.00016026,2]
[347257090,1735642240625,-500.0,0.00016123,2]
[347257091,1735642240635,-500.0,0.00016123,2]
[347257092,1735642240645,-91.84766237,0.00016123,2]
[347257093,1735642241099,-408.15233763,0.00016123,2]
[347257094,1735642241108,-500.0,0.00016123,2]
[347257095,1735642241118,-500.0,0.00016123,2]
[347257096,1735642241128,-500.0,0.00016123,2]
[347257097,1735642241235,-500.0,0.00016123,2]
[347257098,1735642241244,-500.0,0.00016123,2]
[347257099,1735642241255,-500.0,0.00016123,2]
[347257100,1735642241265,-500.0,0.00016123,2]
[347257101,1735642241275,-500.0,0.00016123,2]
[347257102,1735642241284,-573.65317146,0.00016123,2]
[347257103,1735642241298,-500.0,0.00016123,2]
[347257104,1735642241308,-500.0,0.00016123,2]
[347257105,1735642241317,-164.46790632,0.00016123,2]
[347257106,1735642241327,-500.0,0.00016123,2]
[347257107,1735642241341,-500.0,0.00016123,2]
[347257108,1735642241350,-500.0,0.00016123,2]
[347257109,1735642241359,-500.0,0.00016123,2]
[347257110,1735642241368,-500.0,0.00016123,2]
[347257111,1735642241378,-500.0,0.00016123,2]
[347257112,1735642241388,-500.0,0.00016123,2]
[347257113,1735642241396,-500.0,0.00016123,2]
[347257114,1735642241406,-500.0,0.00016123,2]
[347257115,1735642241415,-500.0,0.00016123,2]
[347257116,1735642241424,-500.0,0.00016123,2]
[347257117,1735642241433,-500.0,0.00016123,2]
[347257118,1735642241442,-500.0,0.00016123,2]
[347257119,1735642241452,-500.0,0.00016123,2]
[347257120,1735642241461,-500.0,0.00016123,2]
[347257121,1735642241470,-500.0,0.00016123,2]
[347257122,1735642241480,-500.0,0.00016123,2]
[347257123,1735642241490,-500.0,0.00016123,2]
[347257124,1735642241500,-500.0,0.00016123,2]
[347257125,1735642241509,-500.0,0.00016123,2]
[347257126,1735642241519,-500.0,0.00016123,2]
[347257127,1735642241528,-500.0,0.00016123,2]
[347257128,1735642241538,-500.0,0.00016123,2]
[347257129,1735642241547,-500.0,0.00016123,2]
[347257130,1735642241557,-500.0,0.00016123,2]
[347257131,1735642241567,-500.0,0.00016123,2]
[347257132,1735642241576,-500.0,0.00016123,2]
[347257133,1735642241588,-300.0,0.00016124,2]
[347257134,1735642241596,-235831.0,0.00016124,2]
[347257135,1735642241606,-24900.0,0.00016126,2]
[347257136,1735642241615,-500.0,0.00016173,2]
[347257137,1735642241625,-500.0,0.00016173,2]
[347257138,1735642241634,-283.48671577,0.00016173,2]
[347257139,1735642241643,-212.238868,0.00016237,2]
[347257140,1735642241653,-85.24882458,0.00016417,2]
[347257141,1735642241662,-500.0,0.00016438,2]
[347257142,1735642241672,-500.0,0.00016438,2]
[347257143,1735642241682,-500.0,0.00016438,2]
[347257144,1735642241691,-500.0,0.00016438,2]
[347257145,1735642241701,-550.0,0.00016438,2]
[347257146,1735642241711,-500.0,0.00016438,2]
[347257147,1735642241720,-500.0,0.00016438,2]
[347257148,1735642241730,-500.0,0.00016438,2]
[347257149,1735642241739,-500.0,0.00016438,2]
[347257150,1735642241748,-500.0,0.00016438,2]
[347257151,1735642241758,-483.743,0.00016438,2]
[347257152,1735642241767,-1697.4595305,0.000165,2]
[347257153,1735642241777,-195.4038521,0.00016649,2]
[347257154,1735642241787,-1000.0,0.00016721,2]
[347257155,1735642241797,-813.07228759,0.00016858,2]
[347257156,1735642241806,-201.78563676,0.00017496,2]
[347257157,1735642241816,-322.217,0.00017496,2]
[347257158,1735642241826,-420.0,0.00017627,2]
[347257159,1735642241837,-813.07228759,0.00017689,2]
[347257160,1735642241846,-1500.0,0.00017722,2]
[347257161,1735642241855,-13938.6321773,0.00017855,2]
[347257162,1735642241864,-500.64779044,0.00017873,2]
[347257163,1735642241873,-500.35136097,0.00017873,2]
[347257164,1735642241883,-500.0,0.00017873,2]
[347257165,1735642241892,-500.54115283,0.00017873,2]
[347257166,1735642241902,-500.0,0.00017873,2]
[347257167,1735642241911,-582.1784267,0.00017873,2]
[347257168,1735642241921,-500.0,0.00017873,2]
[347257169,1735642241930,-500.0,0.00017873,2]
[347257170,1735642241939,-169.4673059,0.00017983,2]
[347257171,1735642241949,-2212.96,0.0001831,2]
[347257172,1735642241958,-500.0,0.00018421,2]
[347257173,1735642241967,-1000.0,0.00018421,2]
[347257174,1735642241976,-343.28808326,0.00018421,2]
[347257175,1735642241986,-813.07228759,0.00018521,2]
[347257176,1735642241995,-150.0,0.000186,2]
[347257177,1735642242004,-2009.69685627,0.0001902,2]
[347257178,1735642242013,-261.49148447,0.00019173,2]
[347257179,1735642242023,-335.5336661,0.00019177,10]
[347257180,1735642242032,-500.0,0.00019177,2]
[347257181,1735642242041,-219.84050212,0.00019177,2]
[347257182,1735642242050,-279.68668781,0.00019177,2]
[347257183,1735642242059,-235.40821355,0.00019177,2]
[347257184,1735642242069,-500.0,0.00019177,2]
[347257185,1735642242078,-500.0,0.00019178,2]
[347257186,1735642242087,-347.80364614,0.00019178,2]
[347257187,1735642242096,-503.92937665,0.00019178,2]
[347257188,1735642242106,-200.0,0.00019178,2]